bitfinex-derivatives/quotes_BTCF0:USTF0_20241103
["timestamp","ask_amount","ask_price","bid_price","bid_amount"]
[1730627106584,0.10256453,68270.0,68269.0,0.001]
[1730627106769,0.1384426,68270.0,68269.0,0.001]
[1730627107171,0.10256453,68270.0,68269.0,0.001]
[1730627107469,0.10256453,68270.0,68269.0,0.008]
[1730627107470,0.13944352,68270.0,68269.0,0.008]
[1730627110872,0.1844168,68270.0,68269.0,0.008]
[1730627111075,0.13944352,68270.0,68269.0,0.008]
[1730627111584,0.075266,68270.0,68269.0,0.24270096]
[1730627111898,0.57951664,68274.0,68269.0,0.24270096]
[1730627112077,0.073263,68271.0,68270.0,0.23491092]
[1730627112485,0.073263,68271.0,68270.0,0.10719051]
[1730627113676,0.58051664,68274.0,68270.0,0.10646856]
[1730627113882,0.57935664,68274.0,68271.0,0.19412833]
[1730627114085,0.073262,68272.0,68271.0,0.08765977]
[1730627114277,0.073262,68272.0,68271.0,0.1941291]
[1730627115283,0.073262,68272.0,68271.0,0.10646933]
[1730627115581,0.073262,68272.0,68271.0,0.10746933]
[1730627115582,0.074262,68272.0,68271.0,0.10746933]
[1730627116191,0.074262,68272.0,68271.0,0.19511047]
[1730627116483,0.074262,68272.0,68271.0,0.10746933]
[1730627116691,0.075262,68272.0,68271.0,0.11546933]
[1730627118497,0.075262,68272.0,68271.0,0.11541115]
[1730627118680,0.075262,68272.0,68271.0,0.009]
[1730627122394,0.075262,68272.0,68271.0,0.0409]
[1730627125793,0.03860548,68272.0,68271.0,0.27447719]
[1730627127595,0.03860548,68272.0,68271.0,0.27401497]
[1730627127796,0.03860548,68272.0,68271.0,0.24211497]
[1730627131797,0.073262,68272.0,68271.0,0.24211497]
[1730627133493,0.073262,68272.0,68271.0,0.38004182]
[1730627133689,0.073262,68272.0,68271.0,0.14692685]
[1730627133891,0.04379945,68275.0,68271.0,0.07366385]
[1730627134097,0.02830138,68274.0,68272.0,0.073262]
[1730627134291,0.0283012,68273.0,68272.0,0.073262]
[1730627134692,0.0283012,68273.0,68271.0,0.07366385]
[1730627135006,0.073262,68273.0,68271.0,0.009]
[1730627135198,0.073262,68273.0,68271.0,0.008]
[1730627135398,0.02830107,68272.0,68271.0,0.008]
[1730627136289,0.10156307,68272.0,68271.0,0.008]
[1730627137002,0.10156307,68272.0,68270.0,0.0323]
[1730627137197,0.10156307,68272.0,68269.0,0.073265]
[1730627137198,0.073267,68267.0,68265.0,0.3608]
[1730627137398,0.13793185,68266.0,68265.0,0.3608]
[1730627137804,0.13793185,68266.0,68265.0,1.8608]
[1730627138298,0.13793185,68266.0,68260.0,0.0332]
[1730627138500,0.073274,68260.0,68253.0,0.073281]
[1730627138807,0.073274,68260.0,68251.0,0.4257]
[1730627139000,0.073274,68260.0,68254.0,0.07547877]
[1730627139201,0.073274,68260.0,68254.0,0.14014262]
[1730627139803,0.073274,68260.0,68254.0,0.07547877]
[1730627140607,0.074274,68260.0,68259.0,0.3698]
[1730627140807,0.001,68260.0,68259.0,0.9178512]
[1730627141004,0.002,68260.0,68259.0,0.9188512]
[1730627141205,0.002,68260.0,68259.0,1.0507254]
[1730627141609,0.075274,68260.0,68259.0,0.9188512]
[1730627141806,0.0654,68268.0,68259.0,0.9188512]
[1730627142108,0.138666,68268.0,68267.0,0.10256089]
[1730627142308,0.138666,68268.0,68267.0,0.33574428]
[1730627142806,0.18246507,68268.0,68267.0,0.23318339]
[1730627143510,0.18346507,68268.0,68267.0,0.23318339]
[1730627144107,0.18246507,68268.0,68267.0,0.23318339]
[1730627144301,0.18346507,68268.0,68267.0,0.24318339]
[1730627144608,0.18446507,68268.0,68267.0,0.24318339]
[1730627145003,0.18446507,68268.0,68267.0,0.24518339]
[1730627145406,0.21390507,68268.0,68267.0,0.24518339]
[1730627146008,0.21390507,68268.0,68267.0,0.24369699]
[1730627146511,0.11906507,68268.0,68267.0,0.24369699]
[1730627147718,0.11906507,68268.0,68267.0,0.24375377]
[1730627150607,0.11906507,68268.0,68267.0,0.24380025]
[1730627152810,0.11906507,68268.0,68267.0,0.24384644]
[1730627153623,0.04579907,68268.0,68267.0,0.24384644]
[1730627154430,0.11906507,68268.0,68267.0,0.24384644]
[1730627155317,0.11906507,68268.0,68267.0,0.24328705]
[1730627156028,0.11906507,68268.0,68267.0,0.012]
[1730627156029,0.14736918,68268.0,68267.0,0.012]
[1730627157024,0.24592032,68268.0,68267.0,0.012]
[1730627159612,0.21204342,68268.0,68267.0,0.012]
[1730627159815,0.21204333,68268.0,68267.0,0.012]
[1730627161919,0.30688333,68268.0,68267.0,0.012]
[1730627162522,0.30688335,68268.0,68267.0,0.012]
[1730627163127,0.30688334,68268.0,68267.0,0.012]
[1730627163830,0.27857931,68268.0,68267.0,0.24325496]
[1730627167226,0.18373931,68268.0,68267.0,0.3893295]
[1730627167532,0.18373931,68268.0,68267.0,0.24325496]
[1730627167729,0.18373931,68268.0,68267.0,0.24331174]
[1730627170933,0.14708131,68268.0,68267.0,0.38941179]
[1730627171729,0.09576025,68268.0,68267.0,0.38941179]
[1730627172431,0.09576025,68268.0,68267.0,0.38715887]
[1730627172938,0.09576025,68268.0,68267.0,0.24196653]
[1730627173235,0.04360873,68268.0,68267.0,0.31523353]
[1730627173430,0.42547424,68271.0,68267.0,0.24196653]
[1730627173632,0.42547424,68271.0,68268.0,0.30323153]
[1730627173834,0.42547424,68271.0,68269.0,0.22996653]
[1730627174130,0.45474935,68271.0,68270.0,0.37500237]
[1730627174337,0.49945687,68271.0,68270.0,0.37500237]
[1730627174729,0.18364476,68271.0,68270.0,0.37500237]
[1730627175330,0.18364476,68271.0,68270.0,0.37900237]
[1730627175928,0.18464476,68271.0,68270.0,0.37900237]
[1730627176239,0.18464476,68271.0,68270.0,0.48103154]
[1730627176436,0.18464476,68271.0,68270.0,0.23396653]
[1730627176629,0.18364476,68271.0,68270.0,0.23396653]
[1730627177132,0.18464476,68271.0,68270.0,0.24596653]
[1730627178940,0.21294753,68271.0,68270.0,0.016]
[1730627179239,0.31312804,68271.0,68270.0,0.016]
[1730627179453,0.31312807,68271.0,68270.0,0.016]
[1730627182146,0.40776807,68271.0,68270.0,0.016]
[1730627183028,0.74665329,68271.0,68270.0,0.016]
[1730627183233,0.7825367,68271.0,68270.0,0.016]
[1730627184336,1.18831647,68271.0,68270.0,0.016]
[1730627184543,1.22061647,68271.0,68270.0,0.016]
[1730627186042,1.11145052,68271.0,68270.0,0.12073852]
[1730627186339,1.11145052,68271.0,68270.0,0.19396473]
[1730627187237,0.75065052,68271.0,68270.0,0.19396473]
[1730627187439,1.47225052,68271.0,68270.0,0.08922621]
[1730627188334,1.47225052,68271.0,68270.0,0.016]
[1730627190131,1.47225052,68271.0,68270.0,0.19392762]
[1730627191130,1.47225052,68271.0,68270.0,0.08922621]
[1730627191332,1.47225052,68271.0,68270.0,0.016]
[1730627191630,1.47225052,68271.0,68270.0,0.08922621]
[1730627192439,1.47225052,68271.0,68270.0,0.016]
[1730627192440,0.75065052,68271.0,68270.0,0.016]
[1730627192631,1.47225052,68271.0,68270.0,0.016]
[1730627194029,1.58142479,68271.0,68270.0,0.016]
[1730627194230,1.63398458,68271.0,68270.0,0.00514474]
[1730627196143,1.19454458,68271.0,68270.0,0.00514474]
[1730627197029,1.16228458,68271.0,68270.0,0.00514474]
[1730627197842,1.09798458,68271.0,68270.0,0.00514474]
[1730627199637,1.09798169,68271.0,68270.0,0.00514474]
[1730627201045,0.93625052,68271.0,68270.0,0.00514474]
[1730627203040,0.57545052,68271.0,68270.0,0.00514474]
[1730627206542,0.57545052,68271.0,68270.0,0.04905148]
[1730627207143,0.57545052,68271.0,68270.0,0.00514474]
[1730627207345,0.57545052,68271.0,68270.0,0.04905148]
[1730627207750,0.34400774,68271.0,68270.0,0.04905148]
[1730627208349,0.34400774,68271.0,68270.0,0.00514474]
[1730627208555,0.70480774,68271.0,68270.0,0.00514474]
[1730627208753,0.70480774,68271.0,68270.0,0.04908292]
[1730627209152,0.073278,68257.0,68250.0,0.10917257]
[1730627209354,0.073278,68257.0,68250.0,0.46997257]
[1730627209355,0.16626329,68257.0,68250.0,0.46997257]
[1730627209554,0.24712872,68257.0,68250.0,0.46997257]
[1730627209755,0.18245011,68257.0,68254.0,0.09907638]
[1730627210563,0.18345011,68257.0,68254.0,0.09907638]
[1730627210949,0.18445011,68257.0,68254.0,0.09907638]
[1730627212358,0.18445011,68257.0,68255.0,0.0323]
[1730627212564,0.18445011,68257.0,68256.0,0.512799]
[1730627214160,0.32998785,68257.0,68256.0,0.512799]
[1730627214864,0.18444882,68257.0,68256.0,0.512799]
[1730627216052,0.02427908,68258.0,68256.0,1.00513516]
[1730627216258,0.073277,68258.0,68257.0,0.37512371]
[1730627216559,0.10952672,68261.0,68257.0,0.54073215]
[1730627216766,0.04484811,68261.0,68260.0,0.25523071]
[1730627216956,0.073272,68262.0,68260.0,0.43980232]
[1730627217150,0.073272,68262.0,68261.0,0.44839671]
[1730627217356,0.073272,68262.0,68261.0,0.56565278]
[1730627218067,0.074272,68262.0,68261.0,0.56565278]
[1730627218456,0.075272,68262.0,68261.0,0.30331823]
[1730627218652,0.002,68262.0,68261.0,1.24734564]
[1730627218955,0.002,68262.0,68261.0,1.36458346]
[1730627219155,0.002,68262.0,68261.0,1.4108717]
[1730627219354,0.002,68262.0,68261.0,1.54272965]
[1730627219554,0.001,68262.0,68261.0,1.54272965]
[1730627219774,0.002,68262.0,68261.0,1.54472965]
[1730627220259,0.002,68262.0,68261.0,1.4128717]
[1730627221255,0.002,68262.0,68261.0,1.54470254]
[1730627221473,0.002,68262.0,68261.0,1.54143906]
[1730627221760,0.002,68262.0,68261.0,1.36342711]
[1730627222270,0.002,68262.0,68261.0,1.24624502]
[1730627224063,0.002,68262.0,68261.0,1.05243979]
[1730627224365,0.002,68262.0,68261.0,0.514753]
[1730627224669,0.002,68262.0,68261.0,0.69156827]
[1730627225259,0.002,68262.0,68261.0,0.58797538]
[1730627226567,0.002,68262.0,68261.0,1.05233059]
[1730627227268,0.002,68262.0,68261.0,0.94877538]
[1730627229570,0.002,68262.0,68261.0,0.97905607]
[1730627230361,0.002,68262.0,68261.0,1.2627778]
[1730627230864,0.002,68262.0,68261.0,1.19796799]
[1730627231058,0.06618193,68262.0,68261.0,1.09460314]
[1730627231259,0.06618193,68262.0,68261.0,2.65927473]
[1730627231667,0.06618193,68262.0,68261.0,2.95927473]
[1730627232070,0.03030218,68262.0,68261.0,2.95927473]
[1730627232260,0.14553903,68277.0,68274.0,0.073259]
[1730627232573,0.22619505,68276.0,68275.0,0.105858]
[1730627232768,0.22619505,68276.0,68275.0,0.136358]
[1730627232970,0.22619505,68276.0,68275.0,0.575758]
[1730627233157,0.08084577,68276.0,68275.0,0.575758]
[1730627234465,0.03687673,68276.0,68275.0,0.86165502]
[1730627234663,0.03687673,68276.0,68275.0,0.79698343]
[1730627235062,0.03687673,68276.0,68275.0,0.86165502]
[1730627235263,0.03687673,68276.0,68275.0,0.86265502]
[1730627235264,0.03787673,68276.0,68275.0,0.86265502]
[1730627235967,0.03787673,68276.0,68275.0,1.16265502]
[1730627236562,0.03787673,68276.0,68275.0,2.70716535]
[1730627237474,0.03787673,68276.0,68275.0,2.80176535]
[1730627237669,0.03787673,68276.0,68275.0,2.73709376]
[1730627238177,0.002,68276.0,68275.0,2.73709376]
[1730627239573,0.002,68276.0,68275.0,2.43709376]
[1730627239776,0.002,68276.0,68275.0,2.50176535]
[1730627244782,0.1173213,68291.0,68275.0,2.80176535]
[1730627244988,0.073242,68291.0,68290.0,0.06467159]
[1730627246078,0.078242,68291.0,68290.0,0.06467159]
[1730627246278,0.078242,68291.0,68285.0,0.3608]
[1730627246279,0.28314191,68291.0,68285.0,0.3608]
[1730627246485,0.23818043,68291.0,68290.0,0.06467159]
[1730627246680,0.11412505,68291.0,68290.0,0.06467159]
[1730627246995,0.11412505,68291.0,68290.0,0.13791359]
[1730627247479,0.11412505,68291.0,68290.0,0.13991359]
[1730627249286,0.06916446,68291.0,68290.0,0.13991359]
[1730627249480,0.005,68291.0,68290.0,0.13991359]
[1730627249783,0.11412137,68291.0,68290.0,0.79934936]
[1730627250181,0.11412137,68291.0,68290.0,0.36006936]
[1730627250483,0.11212137,68291.0,68290.0,0.79934936]
[1730627250688,0.11212137,68291.0,68290.0,0.73467777]
[1730627251992,0.06716446,68291.0,68290.0,0.73467777]
[1730627253184,0.003,68291.0,68290.0,0.73467777]
[1730627253485,0.03886461,68291.0,68290.0,1.09547777]
[1730627253679,0.06715485,68291.0,68290.0,1.09547777]
[1730627253884,0.10301944,68291.0,68290.0,1.09547777]
[1730627254287,0.03886461,68291.0,68290.0,1.09547777]
[1730627255385,0.003,68291.0,68290.0,1.09547777]
[1730627257991,0.0305,68301.0,68300.0,0.13790359]
[1730627258188,0.0311,68306.0,68301.0,0.07323]
[1730627258487,0.3608,68308.0,68306.0,0.073225]
[1730627258888,0.3608,68308.0,68306.0,1.573225]
[1730627259887,0.3718,68308.0,68306.0,1.573225]
[1730627260693,0.3768,68308.0,68306.0,1.574225]
[1730627261001,0.073224,68307.0,68306.0,1.501]
[1730627261383,0.23485494,68307.0,68299.0,0.07228541]
[1730627261587,0.073224,68307.0,68306.0,0.06467159]
[1730627261786,0.23485493,68307.0,68306.0,0.01532668]
[1730627262291,0.24885493,68307.0,68306.0,1.51632668]
[1730627262798,0.24885493,68307.0,68306.0,0.01632668]
[1730627267788,0.24885493,68307.0,68304.0,0.0008]
[1730627267992,0.16163093,68306.0,68299.0,0.09456]
[1730627268289,0.18892928,68301.0,68300.0,0.29278949]
[1730627268598,0.16163093,68301.0,68300.0,0.29278949]
[1730627268801,0.16163093,68301.0,68300.0,1.79278949]
[1730627269307,0.074224,68307.0,68300.0,1.71955749]
[1730627269527,0.074224,68307.0,68306.0,0.06467159]
[1730627270290,0.073224,68307.0,68306.0,0.06467159]
[1730627271898,0.074224,68307.0,68306.0,0.06967159]
[1730627272298,0.075224,68307.0,68306.0,0.07567159]
[1730627274892,0.13989559,68307.0,68306.0,0.011]
[1730627275099,0.16818308,68307.0,68306.0,0.011]
[1730627276312,0.073231,68301.0,68298.0,0.33749205]
[1730627276509,0.073231,68301.0,68300.0,0.06467159]
[1730627276717,0.23485986,68301.0,68300.0,0.06467159]
[1730627277303,0.23485986,68301.0,68300.0,1.56467159]
[1730627278116,0.23585986,68301.0,68300.0,1.56467159]
[1730627278507,0.23685986,68301.0,68300.0,1.56467159]
[1730627279308,0.23685986,68301.0,68300.0,1.56567159]
[1730627279512,0.23685986,68301.0,68300.0,0.001]
[1730627279707,0.23685986,68301.0,68300.0,0.06567159]
[1730627280209,0.28157632,68301.0,68300.0,0.06567159]
[1730627280507,0.28157632,68301.0,68300.0,1.56567159]
[1730627281418,0.16362886,68301.0,68300.0,1.56567159]
[1730627281708,0.16362886,68301.0,68300.0,1.63890359]
[1730627281912,0.16362886,68301.0,68300.0,1.70357518]
[1730627282098,0.16362886,68301.0,68300.0,1.92186713]
[1730627283919,0.16362886,68301.0,68300.0,2.28266713]
[1730627284310,0.002,68301.0,68300.0,2.28266713]
[1730627284528,0.002,68301.0,68300.0,2.72190713]
[1730627285012,0.002,68301.0,68300.0,2.76571757]
[1730627285418,0.002,68301.0,68300.0,2.72190713]
[1730627285722,0.3608,68313.0,68312.0,0.073219]
[1730627285911,0.3608,68313.0,68312.0,0.20256218]
[1730627286107,0.3608,68313.0,68312.0,0.42274444]
[1730627286322,0.3608,68319.0,68312.0,1.84952544]
[1730627286619,0.3608,68319.0,68317.0,0.12934318]
[1730627286818,0.02828398,68318.0,68317.0,0.06467159]
[1730627287020,0.3608,68319.0,68317.0,0.06467159]
[1730627287821,0.3608,68319.0,68317.0,0.06567159]
[1730627288315,0.3608,68319.0,68318.0,0.073212]
[1730627289418,0.3638,68319.0,68318.0,0.073212]
[1730627289815,0.003,68319.0,68318.0,0.073212]
[1730627290222,0.003,68319.0,68318.0,0.075212]
[1730627291420,0.076211,68319.0,68318.0,0.002]
[1730627297920,0.50168259,68319.0,68318.0,0.002]
[1730627298527,0.073219,68313.0,68310.0,0.06467159]
[1730627298718,0.22168524,68312.0,68309.0,1.50084]
[1730627298916,0.073221,68310.0,68309.0,1.5]
[1730627299226,0.29490624,68310.0,68309.0,1.5]
[1730627299429,0.29490624,68310.0,68308.0,0.2662909]
[1730627299619,0.4542824,68309.0,68308.0,0.17306661]
[1730627300415,0.22168524,68309.0,68308.0,1.74628961]
[1730627301130,0.22168524,68309.0,68308.0,1.67306661]
[1730627301527,0.22368524,68309.0,68308.0,1.69106661]
[1730627302420,0.29690967,68309.0,68308.0,1.69106661]
[1730627302623,0.29690967,68309.0,68308.0,1.518]
[1730627302927,0.52950683,68309.0,68308.0,1.518]
[1730627304034,0.29690967,68309.0,68308.0,1.518]
[1730627304625,0.29690967,68309.0,68308.0,1.21744151]
[1730627305427,0.50127227,68309.0,68308.0,1.21744151]
[1730627305629,0.50127227,68309.0,68308.0,0.018]
[1730627306321,0.36795642,68309.0,68308.0,0.018]
[1730627306526,0.30786854,68309.0,68308.0,1.518]
[1730627307221,0.075222,68309.0,68308.0,1.518]
[1730627308526,0.069202,68309.0,68308.0,1.518]
[1730627311532,0.13387359,68309.0,68308.0,0.018]
[1730627311829,0.22839359,68309.0,68308.0,0.018]
[1730627313331,0.66759359,68309.0,68299.0,1.5]
[1730627313635,0.06467159,68301.0,68298.0,0.00219591]
[1730627313837,0.073233,68299.0,68298.0,0.00219591]
[1730627315237,0.074233,68299.0,68298.0,0.01519591]
[1730627317335,0.075233,68299.0,68298.0,0.01619591]
[1730627317929,0.436033,68299.0,68298.0,0.01619591]
[1730627321035,0.875273,68299.0,68298.0,0.01619591]
[1730627321425,1.05221967,68299.0,68298.0,0.01619591]
[1730627322646,0.61297967,68299.0,68298.0,0.014]
[1730627322946,0.56938511,68299.0,68298.0,0.014]
[1730627323143,0.56838511,68299.0,68298.0,0.018]
[1730627324034,0.56838511,68299.0,68298.0,0.016]
[1730627324545,0.56738511,68299.0,68298.0,0.003]
[1730627324741,0.56838511,68299.0,68298.0,0.001]
[1730627325044,0.56838511,68299.0,68298.0,0.006]
[1730627325243,0.56738511,68299.0,68298.0,0.005]
[1730627325439,0.56838511,68299.0,68298.0,0.005]
[1730627326837,0.56838511,68299.0,68296.0,0.033]
[1730627326838,0.073235,68297.0,68296.0,0.033]
[1730627327140,0.15405675,68297.0,68296.0,0.033]
[1730627328444,0.073235,68297.0,68296.0,0.033]
[1730627329045,0.074235,68297.0,68296.0,0.034]
[1730627329244,0.13890659,68297.0,68296.0,0.034]
[1730627329437,0.13890659,68297.0,68296.0,0.001]
[1730627329747,0.13990659,68297.0,68296.0,0.006]
[1730627330541,0.13890659,68297.0,68296.0,0.004]
[1730627331250,0.13890659,68297.0,68296.0,0.001]
[1730627331541,0.13990659,68297.0,68296.0,0.006]
[1730627333649,0.075235,68297.0,68296.0,0.006]
[1730627334750,0.075235,68297.0,68296.0,0.04983423]
[1730627335450,0.075235,68297.0,68296.0,0.006]
[1730627335945,0.436035,68297.0,68296.0,0.006]
[1730627336150,0.50070659,68297.0,68296.0,0.006]
[1730627340650,0.59522659,68297.0,68296.0,0.006]
[1730627342153,0.07325,68283.0,68282.0,0.00219661]
[1730627342353,0.43405,68283.0,68282.0,0.00219661]
[1730627343549,0.43505,68283.0,68282.0,0.00819661]
[1730627344349,0.43605,68283.0,68282.0,0.00819661]
[1730627348958,0.07525,68283.0,68282.0,0.00819661]
[1730627349160,0.79685,68283.0,68282.0,0.00819661]
[1730627350957,0.79685,68283.0,68282.0,0.006]
[1730627351164,0.8408568,68283.0,68282.0,0.006]
[1730627351773,0.87673316,68283.0,68282.0,0.006]
[1730627352073,0.97125316,68283.0,68282.0,0.006]
[1730627352564,0.9353768,68283.0,68282.0,0.006]
[1730627352866,0.073259,68274.0,68273.0,1.5]
[1730627353967,0.074259,68274.0,68273.0,1.5]
[1730627354170,0.075259,68274.0,68273.0,1.501]
[1730627358665,0.3164332,68277.0,68273.0,1.74854653]
[1730627358864,0.38110479,68277.0,68274.0,0.24754653]
[1730627359068,0.073257,68276.0,68275.0,0.24755128]
[1730627360566,0.073257,68276.0,68275.0,0.24754875]
[1730627360772,0.074257,68276.0,68275.0,0.24754875]
[1730627361777,0.075257,68276.0,68275.0,0.11365077]
[1730627362465,0.075257,68276.0,68275.0,0.24955022]
[1730627363763,0.075257,68276.0,68275.0,0.11365077]
[1730627363960,0.075257,68276.0,68275.0,0.24955025]
[1730627366563,0.075257,68276.0,68275.0,0.002]
[1730627366564,0.15611247,68276.0,68275.0,0.002]
[1730627367760,0.11113803,68276.0,68275.0,0.002]
[1730627369874,0.1111376,68276.0,68275.0,0.002]
[1730627372569,0.4719376,68276.0,68275.0,0.002]
[1730627373781,0.4719376,68276.0,68275.0,0.35205735]
[1730627373782,0.436057,68276.0,68275.0,0.35205735]
[1730627374372,0.436057,68276.0,68275.0,0.51221029]
[1730627374580,0.436057,68276.0,68275.0,0.2495589]
[1730627375785,0.436057,68276.0,68275.0,0.40971202]
[1730627377879,0.436057,68276.0,68275.0,0.2495589]
[1730627378787,0.075257,68276.0,68275.0,0.2495589]
[1730627378986,0.436057,68276.0,68275.0,0.2495589]
[1730627379181,0.436057,68276.0,68275.0,0.002]
[1730627379393,0.436057,68276.0,68275.0,0.24955899]
[1730627380786,0.436057,68276.0,68275.0,0.40970725]
[1730627380787,0.3920703,68276.0,68275.0,0.40970725]
[1730627380987,0.3628,68276.0,68275.0,0.40970725]
[1730627381688,0.3618,68276.0,68275.0,0.24955899]
[1730627381891,0.436057,68276.0,68275.0,0.25055899]
[1730627385905,0.436057,68276.0,68275.0,0.51324695]
[1730627386106,0.436057,68276.0,68275.0,0.41070425]
[1730627386912,0.436057,68276.0,68275.0,0.41071559]
[1730627387108,0.436057,68276.0,68275.0,0.51328078]
[1730627387403,0.436057,68276.0,68275.0,0.25055899]
[1730627387799,0.436057,68276.0,68275.0,0.11465539]
[1730627388509,0.436057,68276.0,68275.0,0.11465531]
[1730627388695,0.436057,68276.0,68275.0,0.003]
[1730627390610,0.51691077,68276.0,68275.0,0.003]
[1730627390804,0.54801077,68276.0,68275.0,0.003]
[1730627390999,0.69354277,68276.0,68275.0,0.003]
[1730627391396,0.54801077,68276.0,68275.0,0.003]
[1730627392305,0.76039064,68276.0,68275.0,0.003]
[1730627392508,0.60056707,68276.0,68275.0,0.003]
[1730627393005,0.9591133,68276.0,68264.0,0.0023679]
[1730627393212,0.49874059,68265.0,68264.0,0.0023679]
[1730627393503,0.53462525,68265.0,68264.0,0.0023679]
[1730627395104,0.53562525,68265.0,68264.0,0.0033679]
[1730627395304,0.53662525,68265.0,68264.0,0.0033679]
[1730627396700,0.42747159,68265.0,68264.0,0.25096613]
[1730627397009,0.47114103,68265.0,68264.0,0.25096613]
[1730627397206,0.47114103,68265.0,68264.0,0.25096252]
[1730627397807,0.54441003,68265.0,68264.0,0.25096252]
[1730627401316,0.50041605,68265.0,68264.0,0.25096239]
[1730627402020,0.54441003,68265.0,68264.0,0.25096239]
[1730627403709,0.434069,68265.0,68264.0,0.41113529]
[1730627403915,0.49308432,68265.0,68264.0,0.41113529]
[1730627404510,0.42841273,68265.0,68264.0,0.51356163]
[1730627404706,0.42841273,68265.0,68264.0,0.51355854]
[1730627405012,0.42841273,68265.0,68264.0,0.41113529]
[1730627405214,0.42841273,68265.0,68264.0,2.02794444]
[1730627405706,0.42841273,68265.0,68264.0,2.02792732]
[1730627406107,0.42841273,68265.0,68264.0,1.98438817]
[1730627406324,0.42841273,68265.0,68264.0,2.16704098]
[1730627406325,0.35509288,68265.0,68264.0,2.16704098]
[1730627406720,0.42936188,68265.0,68264.0,2.09377098]
[1730627407222,0.435069,68265.0,68264.0,2.09377098]
[1730627407518,0.436069,68265.0,68264.0,1.91311817]
[1730627408411,0.075269,68265.0,68264.0,1.91311817]
[1730627408611,0.436069,68265.0,68264.0,2.03018214]
[1730627408818,0.436069,68265.0,68264.0,1.91311817]
[1730627409118,0.436069,68265.0,68264.0,2.03018214]
[1730627409421,0.50074059,68265.0,68264.0,1.75295086]
[1730627409815,0.50074059,68265.0,68264.0,0.25295086]
[1730627410418,0.50074059,68265.0,68264.0,0.25295594]
[1730627411123,0.54470909,68265.0,68264.0,0.25295594]
[1730627411824,0.54470909,68265.0,68264.0,0.0053679]
[1730627415426,0.54470909,68265.0,68264.0,0.00519745]
[1730627415844,0.63922909,68265.0,68264.0,0.00519745]
[1730627416932,0.67511429,68265.0,68264.0,0.00519745]
[1730627417528,0.67291429,68265.0,68264.0,0.00519745]
[1730627418621,0.54250909,68265.0,68264.0,0.00519745]
[1730627418822,0.47144009,68265.0,68264.0,0.4123185]
[1730627419023,0.002,68265.0,68264.0,0.65618651]
[1730627419234,0.07161863,68268.0,68265.0,0.073268]
[1730627419528,0.07161863,68268.0,68267.0,0.06467159]
[1730627419728,0.07161863,68268.0,68267.0,0.65318651]
[1730627420531,0.07361863,68268.0,68267.0,0.65318651]
[1730627421123,0.07361863,68268.0,68267.0,0.65418651]
[1730627421337,0.0296312,68268.0,68267.0,0.65418651]
[1730627421525,0.002,68268.0,68267.0,0.65418651]
[1730627421730,0.001,68268.0,68267.0,0.78598257]
[1730627421932,0.002,68268.0,68267.0,0.78698257]
[1730627422138,0.002,68268.0,68267.0,0.65518651]
[1730627422335,0.002,68268.0,68267.0,0.78698072]
[1730627422631,0.075266,68268.0,68267.0,0.65518651]
[1730627424135,0.075266,68268.0,68267.0,0.65321077]
[1730627425432,0.075266,68268.0,68267.0,0.78496384]
[1730627425942,0.075266,68268.0,68267.0,0.65321077]
[1730627426630,0.075266,68268.0,68267.0,0.78495145]
[1730627426832,0.10915498,68271.0,68267.0,0.06667159]
[1730627427031,0.10915498,68270.0,68267.0,0.06667159]
[1730627427338,0.3608,68272.0,68267.0,0.06667159]
[1730627427339,0.10915498,68269.0,68267.0,0.06667159]
[1730627427636,0.06418206,68268.0,68267.0,0.06667159]
[1730627427834,0.13744806,68268.0,68267.0,0.06667159]
[1730627428040,0.182421,68268.0,68267.0,0.06567159]
[1730627428234,0.182421,68268.0,68267.0,0.06767159]
[1730627429238,0.182421,68268.0,68267.0,0.06967159]
[1730627429635,0.13744806,68268.0,68267.0,0.06967159]
[1730627430339,0.13844806,68268.0,68267.0,0.06867159]
[1730627430540,0.13944806,68268.0,68267.0,0.07267159]
[1730627432036,0.10356824,68268.0,68267.0,0.07267159]
[1730627433345,0.10256824,68268.0,68267.0,0.07167159]
[1730627433634,0.10356824,68268.0,68267.0,0.07067159]
[1730627433835,0.075266,68268.0,68267.0,0.31823505]
[1730627434140,0.074266,68268.0,68267.0,0.31523505]
[1730627434325,0.075266,68268.0,68267.0,0.31823505]
[1730627434532,0.002,68268.0,68267.0,0.4762476]
[1730627434734,0.075266,68268.0,68267.0,0.4762476]
[1730627435546,0.075266,68268.0,68267.0,0.59336253]
[1730627435942,0.075266,68268.0,68267.0,0.4762476]
[1730627438364,0.3608,68275.0,68267.0,0.65565863]
[1730627438541,0.3608,68275.0,68274.0,0.10247292]
[1730627438741,0.3608,68275.0,68274.0,0.50804893]
[1730627438942,0.3608,68275.0,68274.0,0.35003638]
[1730627439654,0.3608,68275.0,68274.0,0.50983609]
[1730627439943,0.435058,68275.0,68274.0,0.50983609]
[1730627440155,0.436058,68275.0,68274.0,0.41036317]
[1730627440739,0.436058,68275.0,68274.0,1.91036317]
[1730627441348,0.39207105,68275.0,68274.0,1.91036317]
[1730627441746,0.39207105,68275.0,68274.0,2.01283055]
[1730627441949,0.50022423,68275.0,68274.0,1.503]
[1730627442150,0.50122423,68275.0,68274.0,1.508]
[1730627442547,0.50022423,68275.0,68274.0,1.503]
[1730627442739,0.50122423,68275.0,68274.0,0.008]
[1730627444746,0.18441118,68275.0,68274.0,0.008]
[1730627445448,0.18241118,68275.0,68274.0,0.008]
[1730627448144,0.23321671,68275.0,68274.0,0.008]
[1730627448359,0.234963,68275.0,68274.0,0.008]
[1730627448546,0.27837353,68275.0,68274.0,0.008]
[1730627448859,0.073258,68275.0,68274.0,0.25476746]
[1730627449157,0.0366006,68275.0,68274.0,0.25476746]
[1730627453351,0.0366006,68275.0,68274.0,0.11965844]
[1730627455363,0.3974006,68275.0,68274.0,0.11965749]
[1730627456686,0.07324,68293.0,68281.0,0.073251]
[1730627456978,0.45528,68301.0,68292.0,0.07324]
[1730627456979,0.073236,68296.0,68292.0,0.07324]
[1730627457172,0.073236,68296.0,68295.0,0.06467159]
[1730627457367,0.073236,68296.0,68295.0,0.17632874]
[1730627457578,0.073236,68296.0,68295.0,0.13783081]
[1730627457873,0.073236,68296.0,68295.0,0.2494501]
[1730627458073,0.073232,68300.0,68295.0,0.17629088]
[1730627458283,0.073232,68300.0,68290.0,0.08791915]